[Event "*** Titled Tuesday Blitz"]
[Site "Chess.com"]
[Date "2019.02.05"]
[Round "10"]
[White "Lion_DL"]
[Black "WhiteKnight2612"]
[Result "0-1"]
[WhiteElo "2407"]
[BlackElo "2566"]
[TimeControl "180+2"]
[EndTime "15:25:35 PST"]
[Termination "WhiteKnight2612 won by resignation"]

1. e4 {[%clk 0:02:44.5]} 1... e5 {[%clk 0:03:00.5]} 2. f4 {[%clk 0:02:45.1]}
2... exf4 {[%clk 0:03:00.2]} 3. Bc4 {[%clk 0:02:46]} 3... d5 {[%clk 0:02:59.8]}
4. Bxd5 {[%clk 0:02:46.6]} 4... Nf6 {[%clk 0:03:01]} 5. Nc3 {[%clk 0:02:27.9]}
5... Bb4 {[%clk 0:03:00.2]} 6. Nf3 {[%clk 0:02:27.8]} 6... Bxc3 {[%clk
0:02:49.9]} 7. dxc3 {[%clk 0:02:24.3]} 7... c6 {[%clk 0:02:51]} 8. Bc4 {[%clk
0:02:18.1]} 8... Qxd1+ {[%clk 0:02:51.2]} 9. Kxd1 {[%clk 0:02:19.6]} 9... O-O
{[%clk 0:02:52]} 10. Bxf4 {[%clk 0:02:13.6]} 10... Nxe4 {[%clk 0:02:52.8]} 11.
Re1 {[%clk 0:02:07.7]} 11... Nc5 {[%clk 0:02:54]} 12. b4 {[%clk 0:01:57.6]}
12... Ne6 {[%clk 0:02:54.1]} 13. Bg3 {[%clk 0:01:39.3]} 13... b5 {[%clk
0:02:51.7]} 14. Bd3 {[%clk 0:01:32.7]} 14... a6 {[%clk 0:02:47.6]} 15. a4 {[%clk
0:01:20.4]} 15... Bb7 {[%clk 0:02:48.3]} 16. c4 {[%clk 0:01:18.6]} 16... bxa4
{[%clk 0:02:44.7]} 17. Rxa4 {[%clk 0:01:18.8]} 17... c5 {[%clk 0:02:46.6]} 18.
b5 {[%clk 0:01:15.5]} 18... Nd7 {[%clk 0:02:44.6]} 19. Kd2 {[%clk 0:01:09.8]}
19... Nb6 {[%clk 0:02:41]} 20. Raa1 {[%clk 0:00:58.5]} 20... Rfd8 {[%clk
0:02:40.8]} 21. Kc3 {[%clk 0:00:52.7]} 21... axb5 {[%clk 0:02:41.4]} 22. cxb5
{[%clk 0:00:51.6]} 22... Na4+ {[%clk 0:02:02.3]} 23. Kb3 {[%clk 0:00:37]} 23...
Bd5+ {[%clk 0:01:59.5]} 24. c4 {[%clk 0:00:34.1]} 24... Bxf3 {[%clk 0:01:59.8]}
25. Rxe6 {[%clk 0:00:10.4]} 25... fxe6 {[%clk 0:01:57.2]} 26. Bf1 {[%clk
0:00:11]} 26... Bd1+ {[%clk 0:01:56.7]} 0-1

[Event "*** Titled Tuesday Blitz"]
[Site "Chess.com"]
[Date "2019.02.05"]
[Round "10"]
[White "politeplayer"]
[Black "CzechmVIII"]
[Result "1-0"]
[WhiteElo "2024"]
[BlackElo "2088"]
[TimeControl "180+2"]
[EndTime "15:26:04 PST"]
[Termination "politeplayer won on time"]

1. f4 {[%clk 0:02:58.2]} 1... g6 {[%clk 0:03:00]} 2. Nf3 {[%clk 0:02:58.3]} 2...
Bg7 {[%clk 0:03:00.9]} 3. e4 {[%clk 0:02:51.3]} 3... d5 {[%clk 0:03:01.7]} 4. e5
{[%clk 0:02:52.3]} 4... c5 {[%clk 0:03:00.8]} 5. Bb5+ {[%clk 0:02:51.6]} 5...
Nc6 {[%clk 0:03:01.4]} 6. O-O {[%clk 0:02:50.4]} 6... Bg4 {[%clk 0:02:59.6]} 7.
h3 {[%clk 0:02:50.1]} 7... Bxf3 {[%clk 0:02:59.9]} 8. Bxc6+ {[%clk 0:02:47.9]}
8... bxc6 {[%clk 0:02:59.9]} 9. Qxf3 {[%clk 0:02:49.5]} 9... e6 {[%clk
0:03:01.1]} 10. Nc3 {[%clk 0:02:48.3]} 10... h5 {[%clk 0:03:00]} 11. b3 {[%clk
0:02:48.7]} 11... Nh6 {[%clk 0:02:58.9]} 12. Ba3 {[%clk 0:02:48.7]} 12... Qa5
{[%clk 0:02:18.5]} 13. Na4 {[%clk 0:02:47]} 13... Bf8 {[%clk 0:02:19.5]} 14. Qc3
{[%clk 0:02:39.8]} 14... Qxc3 {[%clk 0:02:08.6]} 15. dxc3 {[%clk 0:02:40.4]}
15... c4 {[%clk 0:02:05.8]} 16. Bxf8 {[%clk 0:02:40.7]} 16... Kxf8 {[%clk
0:02:04.6]} 17. bxc4 {[%clk 0:02:31.5]} 17... Nf5 {[%clk 0:01:52]} 18. cxd5
{[%clk 0:02:29.3]} 18... cxd5 {[%clk 0:01:53.2]} 19. Nc5 {[%clk 0:02:25.2]}
19... Rc8 {[%clk 0:01:47.5]} 20. Nd7+ {[%clk 0:02:26.1]} 20... Kg7 {[%clk
0:01:46.6]} 21. Rf3 {[%clk 0:02:17.9]} 21... Rc7 {[%clk 0:01:40.3]} 22. Nf6
{[%clk 0:02:17.8]} 22... Rhc8 {[%clk 0:01:41.2]} 23. g4 {[%clk 0:02:18]} 23...
hxg4 {[%clk 0:01:35.2]} 24. hxg4 {[%clk 0:02:18.7]} 24... Ne7 {[%clk 0:01:32.1]}
25. Rh3 {[%clk 0:02:00.1]} 25... Rh8 {[%clk 0:01:02.1]} 26. Rxh8 {[%clk
0:01:58.9]} 26... Kxh8 {[%clk 0:01:03.1]} 27. Kf2 {[%clk 0:02:00.3]} 27... Rxc3
{[%clk 0:00:42.1]} 28. Rh1+ {[%clk 0:01:58.7]} 28... Kg7 {[%clk 0:00:43.4]} 29.
Ne8+ {[%clk 0:01:55.8]} 29... Kf8 {[%clk 0:00:39.2]} 30. Rh8+ {[%clk 0:01:54.4]}
30... Ng8 {[%clk 0:00:39]} 31. Nf6 {[%clk 0:01:55.9]} 31... Rxc2+ {[%clk
0:00:34.4]} 32. Kg3 {[%clk 0:01:56.7]} 32... Ke7 {[%clk 0:00:07.4]} 33. Rxg8
{[%clk 0:01:55.6]} 1-0

[Event "*** Titled Tuesday Blitz"]
[Site "Chess.com"]
[Date "2019.02.05"]
[Round "10"]
[White "Eliwood44"]
[Black "Synctel"]
[Result "1-0"]
[WhiteElo "2163"]
[BlackElo "1925"]
[TimeControl "180+2"]
[EndTime "15:26:09 PST"]
[Termination "Eliwood44 won on time"]

1. d4 {[%clk 0:03:01.9]} 1... Nf6 {[%clk 0:03:00.4]} 2. Nf3 {[%clk 0:02:59.8]}
2... e6 {[%clk 0:03:00.3]} 3. c4 {[%clk 0:02:57.2]} 3... Bb4+ {[%clk 0:03:00.1]}
4. Bd2 {[%clk 0:02:57.7]} 4... Qe7 {[%clk 0:03:00.5]} 5. g3 {[%clk 0:02:58.6]}
5... Nc6 {[%clk 0:03:01.4]} 6. Nc3 {[%clk 0:02:59.3]} 6... O-O {[%clk
0:02:55.6]} 7. Bg2 {[%clk 0:02:59.9]} 7... d6 {[%clk 0:02:56.5]} 8. O-O {[%clk
0:02:59.4]} 8... Bxc3 {[%clk 0:02:51.2]} 9. Bxc3 {[%clk 0:03:00.2]} 9... e5
{[%clk 0:02:52.6]} 10. dxe5 {[%clk 0:02:56.2]} 10... Nxe5 {[%clk 0:02:35.6]} 11.
Nxe5 {[%clk 0:02:30.9]} 11... dxe5 {[%clk 0:02:37.5]} 12. Qb3 {[%clk 0:02:28.4]}
12... c6 {[%clk 0:02:35.9]} 13. Bb4 {[%clk 0:02:27.8]} 13... c5 {[%clk 0:02:35]}
14. Bc3 {[%clk 0:02:28.6]} 14... Rb8 {[%clk 0:02:22.9]} 15. Qa3 {[%clk
0:02:20.3]} 15... b6 {[%clk 0:02:20.5]} 16. b4 {[%clk 0:02:07.5]} 16... Re8
{[%clk 0:01:58.1]} 17. bxc5 {[%clk 0:02:05.6]} 17... bxc5 {[%clk 0:01:44.2]} 18.
Rab1 {[%clk 0:02:05.2]} 18... Bf5 {[%clk 0:01:36.7]} 19. Rb3 {[%clk 0:02:00.6]}
19... e4 {[%clk 0:00:35.5]} 20. e3 {[%clk 0:01:57.5]} 20... Ng4 {[%clk 0:00:30]}
21. Rfb1 {[%clk 0:01:48.4]} 21... Rxb3 {[%clk 0:00:28.7]} 22. axb3 {[%clk
0:01:49.2]} 22... Qg5 {[%clk 0:00:17]} 23. Qxc5 {[%clk 0:01:46.5]} 23... Qh5
{[%clk 0:00:14.8]} 24. h3 {[%clk 0:01:45]} 24... Nf6 {[%clk 0:00:04.9]} 25. Bxf6
{[%clk 0:01:45.6]} 25... gxf6 {[%clk 0:00:05.6]} 26. Ra1 {[%clk 0:01:39.9]}
26... Rd8 {[%clk 0:00:04.6]} 27. Rxa7 {[%clk 0:01:38.9]} 27... Rd2 {[%clk
0:00:04]} 28. Ra8+ {[%clk 0:01:34.2]} 28... Kg7 {[%clk 0:00:04.9]} 29. Qf8+
{[%clk 0:01:35.3]} 29... Kg6 {[%clk 0:00:05.1]} 30. g4 {[%clk 0:01:33.1]} 1-0

[Event "*** Titled Tuesday Blitz"]
[Site "Chess.com"]
[Date "2019.02.05"]
[Round "10"]
[White "PotapovaM"]
[Black "HajiyevKanan"]
[Result "1-0"]
[WhiteElo "2414"]
[BlackElo "2333"]
[TimeControl "180+2"]
[EndTime "15:26:17 PST"]
[Termination "PotapovaM won by checkmate"]

1. e4 {[%clk 0:03:01.9]} 1... c6 {[%clk 0:02:59.7]} 2. d4 {[%clk 0:02:59.2]}
2... d5 {[%clk 0:03:01.6]} 3. f3 {[%clk 0:03:00.9]} 3... a6 {[%clk 0:03:01.8]}
4. Be3 {[%clk 0:02:58.4]} 4... Qb6 {[%clk 0:03:02.2]} 5. b3 {[%clk 0:02:55.5]}
5... Qa5+ {[%clk 0:02:58.7]} 6. c3 {[%clk 0:02:55.7]} 6... Nf6 {[%clk
0:02:56.5]} 7. Bd3 {[%clk 0:02:56.4]} 7... e5 {[%clk 0:02:37.5]} 8. dxe5 {[%clk
0:02:54.2]} 8... dxe4 {[%clk 0:02:38.2]} 9. exf6 {[%clk 0:02:55.1]} 9... exd3
{[%clk 0:02:38.9]} 10. Qxd3 {[%clk 0:02:55]} 10... Bf5 {[%clk 0:02:31.1]} 11.
Qd4 {[%clk 0:02:56.1]} 11... gxf6 {[%clk 0:01:41.5]} 12. Qxf6 {[%clk 0:02:52.9]}
12... Rg8 {[%clk 0:01:42.7]} 13. g4 {[%clk 0:02:51.9]} 13... Bxb1 {[%clk
0:01:27.2]} 14. Rxb1 {[%clk 0:02:46.1]} 14... Bg7 {[%clk 0:01:27]} 15. Qd6
{[%clk 0:02:19.1]} 15... Bxc3+ {[%clk 0:01:09.8]} 16. Kf2 {[%clk 0:02:16.6]}
16... Qxa2+ {[%clk 0:01:05.1]} 17. Ne2 {[%clk 0:02:09.9]} 17... Rg6 {[%clk
0:00:50.5]} 18. Qc7 {[%clk 0:02:07]} 18... Nd7 {[%clk 0:00:40.5]} 19. Rhd1
{[%clk 0:02:05.2]} 19... Rd8 {[%clk 0:00:37.8]} 20. Bb6 {[%clk 0:01:59.5]} 20...
Kf8 {[%clk 0:00:04.3]} 21. Qxd8+ {[%clk 0:01:59.7]} 21... Kg7 {[%clk 0:00:05.8]}
22. Qxd7 {[%clk 0:01:57.4]} 22... Re6 {[%clk 0:00:07.1]} 23. Bd4+ {[%clk
0:01:57.2]} 23... Kg6 {[%clk 0:00:03.7]} 24. Qxe6+ {[%clk 0:01:43.1]} 24... fxe6
{[%clk 0:00:03.1]} 25. Bxc3 {[%clk 0:01:45]} 25... Qa3 {[%clk 0:00:02.6]} 26.
Nf4+ {[%clk 0:01:43.3]} 26... Kf7 {[%clk 0:00:03]} 27. Rd7+ {[%clk 0:01:40.9]}
27... Ke8 {[%clk 0:00:04.5]} 28. Rbd1 {[%clk 0:01:41.3]} 28... Qa2+ {[%clk
0:00:04.6]} 29. R1d2 {[%clk 0:01:39.1]} 29... Qxb3 {[%clk 0:00:06.3]} 30. Rd8+
{[%clk 0:01:39.9]} 30... Ke7 {[%clk 0:00:02.9]} 31. R2d7# {[%clk 0:01:41.1]} 1-0

[Event "*** Titled Tuesday Blitz"]
[Site "Chess.com"]
[Date "2019.02.05"]
[Round "10"]
[White "cool4chess"]
[Black "Saitama_Hero"]
[Result "1-0"]
[WhiteElo "2323"]
[BlackElo "2238"]
[TimeControl "180+2"]
[EndTime "15:26:20 PST"]
[Termination "cool4chess won by resignation"]

1. e4 {[%clk 0:03:01.9]} 1... d6 {[%clk 0:02:59.3]} 2. d4 {[%clk 0:03:02.4]}
2... g6 {[%clk 0:03:01.2]} 3. Nc3 {[%clk 0:03:03.5]} 3... Bg7 {[%clk 0:03:02.7]}
4. f4 {[%clk 0:03:04.7]} 4... Nf6 {[%clk 0:03:02.4]} 5. Nf3 {[%clk 0:03:04.7]}
5... c5 {[%clk 0:03:03.7]} 6. dxc5 {[%clk 0:03:05.6]} 6... Qa5 {[%clk
0:03:03.1]} 7. Qd4 {[%clk 0:03:06.7]} 7... O-O {[%clk 0:02:37.5]} 8. Be3 {[%clk
0:02:20.9]} 8... Nc6 {[%clk 0:02:26.2]} 9. Qc4 {[%clk 0:02:16.8]} 9... Be6
{[%clk 0:02:19.6]} 10. Qb5 {[%clk 0:02:17.6]} 10... Qxb5 {[%clk 0:02:12]} 11.
Bxb5 {[%clk 0:02:19.5]} 11... Nb4 {[%clk 0:02:07.6]} 12. O-O-O {[%clk
0:02:15.6]} 12... Ng4 {[%clk 0:01:43.2]} 13. Bg1 {[%clk 0:02:13.3]} 13... Bxc3
{[%clk 0:01:40.9]} 14. bxc3 {[%clk 0:02:15.2]} 14... Nxa2+ {[%clk 0:01:41.3]}
15. Kb2 {[%clk 0:02:16.1]} 15... Nf6 {[%clk 0:01:14.8]} 16. Ng5 {[%clk 0:02:07]}
16... Bg4 {[%clk 0:01:09.5]} 17. Re1 {[%clk 0:02:00]} 17... h6 {[%clk
0:01:02.1]} 18. Nf3 {[%clk 0:01:59.7]} 18... Nxc3 {[%clk 0:00:43.9]} 19. Kxc3
{[%clk 0:02:00.1]} 19... dxc5 {[%clk 0:00:43.3]} 20. Ne5 {[%clk 0:01:58.5]}
20... Be6 {[%clk 0:00:42.9]} 21. Be3 {[%clk 0:01:44.2]} 21... Nxe4+ {[%clk
0:00:38.4]} 22. Kb2 {[%clk 0:01:44]} 22... a6 {[%clk 0:00:39.3]} 23. Bd3 {[%clk
0:01:43.9]} 23... Nd6 {[%clk 0:00:32.8]} 24. Bxc5 {[%clk 0:01:44.4]} 24... b6
{[%clk 0:00:24.9]} 25. Bxd6 {[%clk 0:01:44.9]} 25... exd6 {[%clk 0:00:26.8]} 26.
Nxg6 {[%clk 0:01:46.3]} 26... Rfe8 {[%clk 0:00:22.3]} 27. Nh4 {[%clk 0:01:44.8]}
27... Rec8 {[%clk 0:00:19.9]} 28. Nf5 {[%clk 0:01:45.2]} 28... Rc5 {[%clk
0:00:17.4]} 29. Nxd6 {[%clk 0:01:45.3]} 29... a5 {[%clk 0:00:14.3]} 30. f5
{[%clk 0:01:45.6]} 30... Bd5 {[%clk 0:00:14.5]} 31. f6 {[%clk 0:01:46.7]} 31...
a4 {[%clk 0:00:14]} 32. Re7 {[%clk 0:01:46.3]} 32... a3+ {[%clk 0:00:13.4]} 33.
Ka1 {[%clk 0:01:47.6]} 33... a2 {[%clk 0:00:14.1]} 34. Rhe1 {[%clk 0:01:48.7]}
34... Kf8 {[%clk 0:00:08.4]} 35. Re8+ {[%clk 0:01:49.1]} 1-0

[Event "*** Titled Tuesday Blitz"]
[Site "Chess.com"]
[Date "2019.02.05"]
[Round "10"]
[White "MehdiHosseinipour"]
[Black "GadimbayliA"]
[Result "1/2-1/2"]
[WhiteElo "2546"]
[BlackElo "2814"]
[TimeControl "180+2"]
[EndTime "15:26:24 PST"]
[Termination "Game drawn by agreement"]

1. e4 {[%clk 0:03:01.9]} 1... e6 {[%clk 0:03:00.5]} 2. d4 {[%clk 0:03:02.9]}
2... d5 {[%clk 0:03:02.4]} 3. Nd2 {[%clk 0:03:04.3]} 3... c5 {[%clk 0:03:01.1]}
4. exd5 {[%clk 0:03:05.6]} 4... Qxd5 {[%clk 0:03:03]} 5. Ngf3 {[%clk 0:03:07.1]}
5... cxd4 {[%clk 0:03:03.5]} 6. Bc4 {[%clk 0:03:08.7]} 6... Qd7 {[%clk
0:03:02.5]} 7. O-O {[%clk 0:03:09.9]} 7... Nc6 {[%clk 0:03:02.8]} 8. Nb3 {[%clk
0:03:11.5]} 8... a6 {[%clk 0:03:03.4]} 9. Nbxd4 {[%clk 0:03:13.1]} 9... Nxd4
{[%clk 0:03:05.3]} 10. Qxd4 {[%clk 0:03:06.6]} 10... Qxd4 {[%clk 0:03:04.2]} 11.
Nxd4 {[%clk 0:03:08.5]} 11... b5 {[%clk 0:03:01.9]} 12. Bb3 {[%clk 0:03:09.1]}
12... Bb7 {[%clk 0:03:02.2]} 13. a4 {[%clk 0:03:04.3]} 13... b4 {[%clk
0:02:21.4]} 14. a5 {[%clk 0:02:58.2]} 14... Bc5 {[%clk 0:02:20.9]} 15. Be3
{[%clk 0:02:55.7]} 15... Rc8 {[%clk 0:02:03]} 16. Ba4+ {[%clk 0:02:48.1]} 16...
Kf8 {[%clk 0:02:03.8]} 17. Rad1 {[%clk 0:02:25.2]} 17... Bd5 {[%clk 0:02:04.5]}
18. Rfe1 {[%clk 0:01:44.5]} 18... Nf6 {[%clk 0:02:04.4]} 19. Bf4 {[%clk
0:01:19.8]} 19... h6 {[%clk 0:01:57.5]} 20. h3 {[%clk 0:01:18.1]} 20... Kg8
{[%clk 0:01:49]} 21. c3 {[%clk 0:00:59.6]} 21... bxc3 {[%clk 0:01:48.1]} 22.
bxc3 {[%clk 0:01:01.1]} 22... Ba7 {[%clk 0:01:23.3]} 23. Be5 {[%clk 0:00:51.4]}
23... Ne4 {[%clk 0:01:09.7]} 24. Rc1 {[%clk 0:00:32.5]} 1/2-1/2

[Event "*** Titled Tuesday Blitz"]
[Site "Chess.com"]
[Date "2019.02.05"]
[Round "10"]
[White "Agent-JL"]
[Black "Jbd735"]
[Result "0-1"]
[WhiteElo "2256"]
[BlackElo "2466"]
[TimeControl "180+2"]
[EndTime "15:26:28 PST"]
[Termination "Jbd735 won on time"]

1. d4 {[%clk 0:03:01.1]} 1... d5 {[%clk 0:03:00.3]} 2. c4 {[%clk 0:03:01.7]}
2... e6 {[%clk 0:03:00.6]} 3. Nc3 {[%clk 0:03:03.1]} 3... c6 {[%clk 0:03:00.8]}
4. Nf3 {[%clk 0:03:04.1]} 4... Nf6 {[%clk 0:03:01.3]} 5. cxd5 {[%clk 0:03:03.8]}
5... exd5 {[%clk 0:03:02]} 6. Bf4 {[%clk 0:03:04.2]} 6... Bd6 {[%clk 0:03:01.4]}
7. e3 {[%clk 0:03:00.9]} 7... Bxf4 {[%clk 0:02:59]} 8. exf4 {[%clk 0:03:02.8]}
8... O-O {[%clk 0:02:58.5]} 9. Be2 {[%clk 0:02:57]} 9... Bf5 {[%clk 0:02:50.5]}
10. O-O {[%clk 0:02:47.7]} 10... Nbd7 {[%clk 0:02:48.5]} 11. Ne1 {[%clk
0:02:45.9]} 11... Re8 {[%clk 0:02:24.8]} 12. Nd3 {[%clk 0:02:32.7]} 12... Qb6
{[%clk 0:02:23.6]} 13. g4 {[%clk 0:01:42.6]} 13... Rxe2 {[%clk 0:01:53.7]} 14.
Nxe2 {[%clk 0:01:22.4]} 14... Bxg4 {[%clk 0:01:53.3]} 15. f3 {[%clk 0:01:23.2]}
15... Bf5 {[%clk 0:01:45.9]} 16. Qd2 {[%clk 0:01:18.4]} 16... Re8 {[%clk
0:01:40.5]} 17. Rfe1 {[%clk 0:00:38.5]} 17... Nf8 {[%clk 0:01:38.9]} 18. Ne5
{[%clk 0:00:37.6]} 18... Ne6 {[%clk 0:01:36.5]} 19. Kh1 {[%clk 0:00:36]} 19...
h5 {[%clk 0:01:26.8]} 20. b3 {[%clk 0:00:32.8]} 20... h4 {[%clk 0:01:26.9]} 21.
Rg1 {[%clk 0:00:32.8]} 21... Nh5 {[%clk 0:01:08.3]} 22. Rg2 {[%clk 0:00:16]}
22... f6 {[%clk 0:00:59.3]} 23. Nd7 {[%clk 0:00:03.7]} 23... Qc7 {[%clk
0:00:55.6]} 24. Nc5 {[%clk 0:00:04.4]} 24... Nexf4 {[%clk 0:00:54.2]} 25. Nxf4
{[%clk 0:00:03]} 25... Nxf4 {[%clk 0:00:53.7]} 0-1

[Event "*** Titled Tuesday Blitz"]
[Site "Chess.com"]
[Date "2019.02.05"]
[Round "10"]
[White "Witaliss"]
[Black "NotFischer"]
[Result "1-0"]
[WhiteElo "2382"]
[BlackElo "2118"]
[TimeControl "180+2"]
[EndTime "15:26:29 PST"]
[Termination "Witaliss won by resignation"]

1. d4 {[%clk 0:03:01.9]} 1... Nf6 {[%clk 0:03:00.1]} 2. Nf3 {[%clk 0:03:02.3]}
2... e6 {[%clk 0:03:01.3]} 3. c4 {[%clk 0:03:02.6]} 3... d5 {[%clk 0:03:02]} 4.
Nc3 {[%clk 0:03:02.7]} 4... Nbd7 {[%clk 0:03:02.7]} 5. cxd5 {[%clk 0:03:03.6]}
5... exd5 {[%clk 0:03:03.3]} 6. Bg5 {[%clk 0:03:04.6]} 6... Be7 {[%clk
0:02:55.4]} 7. e3 {[%clk 0:03:04.8]} 7... c6 {[%clk 0:02:54.8]} 8. Bd3 {[%clk
0:03:04.8]} 8... O-O {[%clk 0:02:55.1]} 9. Qc2 {[%clk 0:03:05.1]} 9... Re8
{[%clk 0:02:54.3]} 10. h3 {[%clk 0:03:04.5]} 10... Nf8 {[%clk 0:02:53.5]} 11.
O-O-O {[%clk 0:03:02.9]} 11... Be6 {[%clk 0:02:47]} 12. Kb1 {[%clk 0:03:01.1]}
12... Rc8 {[%clk 0:02:45.3]} 13. g4 {[%clk 0:03:01.3]} 13... c5 {[%clk
0:02:37.1]} 14. dxc5 {[%clk 0:03:01.4]} 14... Rxc5 {[%clk 0:02:37.5]} 15. Nd4
{[%clk 0:02:59.9]} 15... Qc8 {[%clk 0:02:23.3]} 16. Rc1 {[%clk 0:02:55.5]} 16...
a6 {[%clk 0:02:08.8]} 17. Qe2 {[%clk 0:02:47]} 17... Bd7 {[%clk 0:01:49.3]} 18.
Bf5 {[%clk 0:02:37.4]} 18... Ne6 {[%clk 0:01:47.9]} 19. Bxf6 {[%clk 0:02:28.8]}
19... Bxf6 {[%clk 0:01:47.5]} 20. Qd3 {[%clk 0:02:21.2]} 20... Nxd4 {[%clk
0:01:21.9]} 21. exd4 {[%clk 0:02:13]} 21... Bxf5 {[%clk 0:01:16]} 22. gxf5
{[%clk 0:02:13.7]} 22... Rc4 {[%clk 0:01:17]} 23. Nxd5 {[%clk 0:02:14.4]} 23...
Rxc1+ {[%clk 0:01:08.3]} 24. Rxc1 {[%clk 0:02:14.3]} 24... Qd8 {[%clk
0:01:10.2]} 25. Nxf6+ {[%clk 0:02:06.7]} 25... Qxf6 {[%clk 0:01:12.1]} 26. a3
{[%clk 0:02:05]} 26... Rd8 {[%clk 0:01:11.6]} 27. d5 {[%clk 0:02:05.5]} 27...
Qe5 {[%clk 0:01:10.6]} 28. d6 {[%clk 0:01:57.1]} 28... h6 {[%clk 0:01:04.3]} 29.
Rd1 {[%clk 0:01:56.9]} 29... Rd7 {[%clk 0:01:04.7]} 30. Qd5 {[%clk 0:01:51.3]}
30... Qxd5 {[%clk 0:00:49.6]} 31. Rxd5 {[%clk 0:01:51.2]} 31... Kf8 {[%clk
0:00:50.4]} 32. Kc2 {[%clk 0:01:51.5]} 32... Ke8 {[%clk 0:00:51.4]} 33. Kd3
{[%clk 0:01:52.7]} 33... Rd8 {[%clk 0:00:52.9]} 34. Kd4 {[%clk 0:01:48.5]} 34...
Rd7 {[%clk 0:00:54.1]} 35. Kc5 {[%clk 0:01:46.1]} 35... Kd8 {[%clk 0:00:52.8]}
36. Re5 {[%clk 0:01:42.1]} 36... b6+ {[%clk 0:00:43.1]} 37. Kc6 {[%clk 0:01:42]}
37... b5 {[%clk 0:00:44.2]} 38. b4 {[%clk 0:01:41.6]} 38... Ra7 {[%clk
0:00:41.2]} 39. h4 {[%clk 0:01:34.1]} 39... Ra8 {[%clk 0:00:38.2]} 40. d7 {[%clk
0:01:31.9]} 1-0

[Event "*** Titled Tuesday Blitz"]
[Site "Chess.com"]
[Date "2019.02.05"]
[Round "10"]
[White "GataKamsky1974"]
[Black "Fy_Rakotomaharo"]
[Result "1-0"]
[WhiteElo "2747"]
[BlackElo "2481"]
[TimeControl "180+2"]
[EndTime "15:26:31 PST"]
[Termination "GataKamsky1974 won by resignation"]

1. d4 {[%clk 0:03:01.9]} 1... Nf6 {[%clk 0:02:59.4]} 2. Nf3 {[%clk 0:03:01.2]}
2... g6 {[%clk 0:02:59.9]} 3. Bg5 {[%clk 0:03:02]} 3... Bg7 {[%clk 0:03:00.5]}
4. Nbd2 {[%clk 0:03:03]} 4... d5 {[%clk 0:03:01.3]} 5. e3 {[%clk 0:03:03.3]}
5... O-O {[%clk 0:03:02.6]} 6. c3 {[%clk 0:03:04.3]} 6... b6 {[%clk 0:02:58.8]}
7. Be2 {[%clk 0:03:05.3]} 7... c5 {[%clk 0:02:58.5]} 8. O-O {[%clk 0:03:06.5]}
8... Bb7 {[%clk 0:02:57.9]} 9. a4 {[%clk 0:03:07.8]} 9... a6 {[%clk 0:02:58.4]}
10. Qb3 {[%clk 0:03:08.2]} 10... Nbd7 {[%clk 0:02:58.3]} 11. Rfd1 {[%clk
0:03:06.9]} 11... Re8 {[%clk 0:02:47.4]} 12. h3 {[%clk 0:03:04.7]} 12... Qc8
{[%clk 0:02:44.5]} 13. Bf4 {[%clk 0:03:04.7]} 13... h6 {[%clk 0:02:38.7]} 14.
Ne5 {[%clk 0:03:01.9]} 14... e6 {[%clk 0:02:20.1]} 15. Rdc1 {[%clk 0:02:44.7]}
15... c4 {[%clk 0:02:10.7]} 16. Qc2 {[%clk 0:02:45.4]} 16... Nxe5 {[%clk
0:02:08.6]} 17. Bxe5 {[%clk 0:02:45.7]} 17... Nd7 {[%clk 0:02:08.4]} 18. Bxg7
{[%clk 0:02:46.3]} 18... Kxg7 {[%clk 0:02:10]} 19. f4 {[%clk 0:02:42.6]} 19...
b5 {[%clk 0:02:03]} 20. b4 {[%clk 0:02:42.3]} 20... Nf6 {[%clk 0:01:54.8]} 21.
Bf3 {[%clk 0:02:41.3]} 21... Bc6 {[%clk 0:01:50.4]} 22. axb5 {[%clk 0:02:36.7]}
22... axb5 {[%clk 0:01:51.1]} 23. e4 {[%clk 0:02:28.9]} 23... dxe4 {[%clk
0:01:48.2]} 24. Nxe4 {[%clk 0:02:30.2]} 24... Nxe4 {[%clk 0:01:45.4]} 25. Bxe4
{[%clk 0:02:31.2]} 25... Qb7 {[%clk 0:01:46.8]} 26. Bxc6 {[%clk 0:02:31]} 26...
Qxc6 {[%clk 0:01:48.7]} 27. Qe2 {[%clk 0:02:32.2]} 27... Qd5 {[%clk 0:01:36.9]}
28. Qe5+ {[%clk 0:02:15.5]} 28... Kg8 {[%clk 0:01:29.3]} 29. Re1 {[%clk
0:02:13.8]} 29... Rxa1 {[%clk 0:01:19.8]} 30. Rxa1 {[%clk 0:02:13.8]} 30... Ra8
{[%clk 0:01:21.1]} 31. Ra5 {[%clk 0:02:10.9]} 31... Rxa5 {[%clk 0:00:36.5]} 32.
bxa5 {[%clk 0:02:10.7]} 32... Qb7 {[%clk 0:00:33]} 33. Qc5 {[%clk 0:02:10.4]}
33... Qe4 {[%clk 0:00:33.8]} 34. Qe5 {[%clk 0:02:02.6]} 34... Qb7 {[%clk
0:00:26.1]} 35. Kh2 {[%clk 0:02:00.5]} 35... b4 {[%clk 0:00:26.8]} 36. cxb4
{[%clk 0:01:58.8]} 36... Qxb4 {[%clk 0:00:19.9]} 37. a6 {[%clk 0:01:59.5]} 37...
Qa3 {[%clk 0:00:16.9]} 38. Qb8+ {[%clk 0:01:59]} 38... Kh7 {[%clk 0:00:14.1]}
39. a7 {[%clk 0:02:00]} 1-0